[Event "Late-Titled-Tuesday-Blitz-March-12-2024"]
[Site "Chess.com"]
[Date "2024.03.12"]
[Round "1"]
[White "Rutricks"]
[Black "TheAlienParty"]
[Result "1-0"]
[WhiteElo "2718"]
[BlackElo "2402"]
[TimeControl "180+1"]
[EndTime "14:06:37 PDT"]
[Termination "Rutricks won by checkmate"]

1. Nc3 {[%clk 0:02:59.8]} 1... c5 {[%clk 0:02:55.6]} 2. e4 {[%clk 0:02:59.4]}
2... Nc6 {[%clk 0:02:50.2]} 3. Bb5 {[%clk 0:02:58.1]} 3... Nd4 {[%clk
0:02:49.1]} 4. Bc4 {[%clk 0:02:58.3]} 4... e6 {[%clk 0:02:47.6]} 5. Nge2 {[%clk
0:02:58.8]} 5... Nxe2 {[%clk 0:02:43.9]} 6. Qxe2 {[%clk 0:02:58.8]} 6... d6
{[%clk 0:02:42.1]} 7. f4 {[%clk 0:02:58.1]} 7... a6 {[%clk 0:02:40]} 8. a4
{[%clk 0:02:58.3]} 8... g6 {[%clk 0:02:34.6]} 9. O-O {[%clk 0:02:58.3]} 9... Bg7
{[%clk 0:02:34]} 10. f5 {[%clk 0:02:58.8]} 10... Bd4+ {[%clk 0:02:25.5]} 11. Kh1
{[%clk 0:02:58.9]} 11... Ne7 {[%clk 0:02:16.7]} 12. d3 {[%clk 0:02:49.4]} 12...
Nc6 {[%clk 0:02:10.5]} 13. fxe6 {[%clk 0:02:24]} 13... Bxe6 {[%clk 0:02:06.2]}
14. Bxe6 {[%clk 0:02:23.9]} 14... fxe6 {[%clk 0:02:05.7]} 15. Qg4 {[%clk
0:02:24.5]} 15... Qd7 {[%clk 0:01:54.5]} 16. Bg5 {[%clk 0:02:23]} 16... Ne5
{[%clk 0:01:50]} 17. Qh3 {[%clk 0:02:20.9]} 17... Nf7 {[%clk 0:01:47.4]} 18. Bf6
{[%clk 0:02:09.7]} 18... Bxf6 {[%clk 0:01:37.9]} 19. Rxf6 {[%clk 0:02:10.6]}
19... O-O {[%clk 0:01:37.9]} 20. Rxe6 {[%clk 0:02:05.4]} 20... Rad8 {[%clk
0:01:31.5]} 21. Rf6 {[%clk 0:00:44.9]} 21... Qxh3 {[%clk 0:01:30.3]} 22. gxh3
{[%clk 0:00:45.8]} 22... Ne5 {[%clk 0:01:29.8]} 23. Raf1 {[%clk 0:00:43.1]}
23... Rxf6 {[%clk 0:01:28.5]} 24. Rxf6 {[%clk 0:00:44]} 24... Kg7 {[%clk
0:01:28.9]} 25. Nd5 {[%clk 0:00:41.3]} 25... b5 {[%clk 0:01:25.6]} 26. a5 {[%clk
0:00:27.1]} 26... Nc6 {[%clk 0:01:24.8]} 27. Rf1 {[%clk 0:00:22.9]} 27... Nd4
{[%clk 0:01:21.3]} 28. Nc7 {[%clk 0:00:17.8]} 28... Nxc2 {[%clk 0:01:18.4]} 29.
Ne6+ {[%clk 0:00:18]} 29... Kh6 {[%clk 0:01:17.3]} 30. Nxd8 {[%clk 0:00:18.9]}
30... Nb4 {[%clk 0:01:15.9]} 31. Rf3 {[%clk 0:00:10.4]} 31... Kg5 {[%clk
0:01:15.4]} 32. Ne6+ {[%clk 0:00:09.7]} 32... Kh4 {[%clk 0:01:15.6]} 33. Kg2
{[%clk 0:00:09.6]} 33... g5 {[%clk 0:01:15.5]} 34. Ng7 {[%clk 0:00:09.2]} 34...
h6 {[%clk 0:01:14.4]} 35. Rf6 {[%clk 0:00:09.3]} 35... g4 {[%clk 0:01:12.9]} 36.
Rxh6+ {[%clk 0:00:08.4]} 36... Kg5 {[%clk 0:01:13.2]} 37. Rxd6 {[%clk
0:00:08.9]} 37... gxh3+ {[%clk 0:01:13.1]} 38. Kxh3 {[%clk 0:00:09.8]} 38... c4
{[%clk 0:01:12.7]} 39. dxc4 {[%clk 0:00:09.7]} 39... bxc4 {[%clk 0:01:13]} 40.
Rd4 {[%clk 0:00:10.1]} 40... c3 {[%clk 0:01:12.5]} 41. Rxb4 {[%clk 0:00:10.2]}
41... c2 {[%clk 0:01:11.9]} 42. Rc4 {[%clk 0:00:10.6]} 42... Kf6 {[%clk
0:01:12.4]} 43. Rxc2 {[%clk 0:00:11]} 43... Kxg7 {[%clk 0:01:12.6]} 44. Rc6
{[%clk 0:00:11.7]} 44... Kf8 {[%clk 0:01:13.3]} 45. Kg4 {[%clk 0:00:11.2]} 45...
Ke7 {[%clk 0:01:14.2]} 46. Kf5 {[%clk 0:00:11.7]} 46... Kd7 {[%clk 0:01:15.1]}
47. Rb6 {[%clk 0:00:12.2]} 47... Kc7 {[%clk 0:01:15.5]} 48. h4 {[%clk
0:00:12.9]} 48... Kd7 {[%clk 0:01:16]} 49. h5 {[%clk 0:00:13.8]} 49... Ke7
{[%clk 0:01:16.5]} 50. h6 {[%clk 0:00:14.7]} 50... Kf7 {[%clk 0:01:17.1]} 51.
Rb7+ {[%clk 0:00:15]} 51... Kg8 {[%clk 0:01:17.6]} 52. Kf6 {[%clk 0:00:15.5]}
52... Kh8 {[%clk 0:01:18.5]} 53. Kg6 {[%clk 0:00:15.4]} 53... Kg8 {[%clk
0:01:18.3]} 54. Rb8# {[%clk 0:00:16.3]} 1-0

[Event "Late-Titled-Tuesday-Blitz-March-12-2024"]
[Site "Chess.com"]
[Date "2024.03.12"]
[Round "1"]
[White "diamonds13"]
[Black "Korchmar_Vasiliy"]
[Result "0-1"]
[WhiteElo "2353"]
[BlackElo "2692"]
[TimeControl "180+1"]
[EndTime "14:06:38 PDT"]
[Termination "Korchmar_Vasiliy won by resignation"]

1. d4 {[%clk 0:02:59.6]} 1... d5 {[%clk 0:02:59.5]} 2. c4 {[%clk 0:02:57.2]}
2... c6 {[%clk 0:02:59.7]} 3. cxd5 {[%clk 0:02:56.3]} 3... cxd5 {[%clk 0:02:59]}
4. Bf4 {[%clk 0:02:55.7]} 4... Nc6 {[%clk 0:02:55.4]} 5. e3 {[%clk 0:02:55.2]}
5... Nf6 {[%clk 0:02:54.5]} 6. Nc3 {[%clk 0:02:54.2]} 6... a6 {[%clk 0:02:54.3]}
7. Bd3 {[%clk 0:02:53.1]} 7... Bg4 {[%clk 0:02:53]} 8. f3 {[%clk 0:02:52.8]}
8... Bd7 {[%clk 0:02:49.3]} 9. Nge2 {[%clk 0:02:52.3]} 9... g6 {[%clk
0:02:34.5]} 10. g4 {[%clk 0:02:52]} 10... Bg7 {[%clk 0:02:34.5]} 11. h4 {[%clk
0:02:49.5]} 11... O-O {[%clk 0:02:32.3]} 12. h5 {[%clk 0:02:48.4]} 12... b5
{[%clk 0:02:14.6]} 13. Qb1 {[%clk 0:02:34]} 13... b4 {[%clk 0:02:13]} 14. Nd1
{[%clk 0:02:32.7]} 14... e6 {[%clk 0:01:41.2]} 15. Bg5 {[%clk 0:02:18.5]} 15...
e5 {[%clk 0:01:37.2]} 16. hxg6 {[%clk 0:02:13.7]} 16... fxg6 {[%clk 0:01:35.7]}
17. Bxg6 {[%clk 0:02:01.3]} 17... hxg6 {[%clk 0:01:34.9]} 18. Qxg6 {[%clk
0:02:00.4]} 18... Qe8 {[%clk 0:01:24.7]} 19. Qc2 {[%clk 0:01:47.2]} 19... e4
{[%clk 0:01:23.6]} 20. Nf4 {[%clk 0:01:42.1]} 20... Rc8 {[%clk 0:01:20.2]} 21.
Qh2 {[%clk 0:01:39.5]} 21... exf3 {[%clk 0:01:07.9]} 22. Bxf6 {[%clk 0:01:34.7]}
22... Rxf6 {[%clk 0:01:08.8]} 23. Qh7+ {[%clk 0:01:32.5]} 23... Kf8 {[%clk
0:01:09.1]} 24. Nxd5 {[%clk 0:01:23.8]} 24... f2+ {[%clk 0:00:54.7]} 25. Nxf2
{[%clk 0:01:18.1]} 25... Nxd4 {[%clk 0:00:52.4]} 26. g5 {[%clk 0:01:10.8]} 26...
Nf3+ {[%clk 0:00:45.6]} 27. Kf1 {[%clk 0:01:05.8]} 27... Bb5+ {[%clk 0:00:44]}
28. Kg2 {[%clk 0:01:02.4]} 28... Nxg5 {[%clk 0:00:44.5]} 29. Nxf6 {[%clk
0:00:58.8]} 29... Qc6+ {[%clk 0:00:43.3]} 30. e4 {[%clk 0:00:51.4]} 30... Nxh7
{[%clk 0:00:42.5]} 31. Nxh7+ {[%clk 0:00:51.5]} 31... Kg8 {[%clk 0:00:42.2]} 32.
Ng5 {[%clk 0:00:50]} 32... Qg6 {[%clk 0:00:41.1]} 33. Nh3 {[%clk 0:00:47.5]}
33... Bd7 {[%clk 0:00:37]} 34. Rag1 {[%clk 0:00:36.7]} 34... Bd4 {[%clk
0:00:30]} 35. Nf4 {[%clk 0:00:29.3]} 35... Qxg5+ {[%clk 0:00:28.9]} 36. Kh2
{[%clk 0:00:27.6]} 36... Bxg1+ {[%clk 0:00:28.9]} 0-1

[Event "Late-Titled-Tuesday-Blitz-March-12-2024"]
[Site "Chess.com"]
[Date "2024.03.12"]
[Round "1"]
[White "flubs"]
[Black "baag"]
[Result "0-1"]
[WhiteElo "2481"]
[BlackElo "2854"]
[TimeControl "180+1"]
[EndTime "14:06:39 PDT"]
[Termination "baag won by resignation"]

1. Nf3 {[%clk 0:02:59.1]} 1... Nf6 {[%clk 0:02:55.9]} 2. c4 {[%clk 0:02:59.1]}
2... b6 {[%clk 0:02:56.1]} 3. d3 {[%clk 0:02:58]} 3... Bb7 {[%clk 0:02:56.6]} 4.
e4 {[%clk 0:02:57.9]} 4... c5 {[%clk 0:02:57.2]} 5. Nc3 {[%clk 0:02:57.9]} 5...
d6 {[%clk 0:02:56.8]} 6. g3 {[%clk 0:02:57.5]} 6... g6 {[%clk 0:02:57.2]} 7. Bg2
{[%clk 0:02:57.7]} 7... Bg7 {[%clk 0:02:58]} 8. O-O {[%clk 0:02:57.8]} 8... O-O
{[%clk 0:02:58.8]} 9. Re1 {[%clk 0:02:58]} 9... Nc6 {[%clk 0:02:57.1]} 10. Bg5
{[%clk 0:02:57.6]} 10... a6 {[%clk 0:02:52.6]} 11. Qd2 {[%clk 0:02:57.2]} 11...
Re8 {[%clk 0:02:50.5]} 12. h3 {[%clk 0:02:53.4]} 12... Nd7 {[%clk 0:02:49.6]}
13. Nd5 {[%clk 0:02:47.7]} 13... Nde5 {[%clk 0:02:24]} 14. Nh2 {[%clk
0:02:35.9]} 14... Nd4 {[%clk 0:02:17.1]} 15. Be3 {[%clk 0:02:29.3]} 15... e6
{[%clk 0:02:11.2]} 16. Bxd4 {[%clk 0:02:20.2]} 16... cxd4 {[%clk 0:01:59]} 17.
Nf4 {[%clk 0:02:11.9]} 17... b5 {[%clk 0:01:56.3]} 18. b3 {[%clk 0:02:09.9]}
18... Qb6 {[%clk 0:01:51.2]} 19. Ne2 {[%clk 0:02:07.8]} 19... a5 {[%clk
0:01:48.2]} 20. f4 {[%clk 0:02:03.8]} 20... Nd7 {[%clk 0:01:32.3]} 21. Nf3
{[%clk 0:02:01.9]} 21... a4 {[%clk 0:01:29.5]} 22. Rab1 {[%clk 0:02:02.2]} 22...
a3 {[%clk 0:01:15.6]} 23. Qb4 {[%clk 0:01:47.5]} 23... Nc5 {[%clk 0:01:05.4]}
24. Red1 {[%clk 0:01:47.8]} 24... Nxe4 {[%clk 0:00:59.4]} 25. cxb5 {[%clk
0:01:26.1]} 25... Nc3 {[%clk 0:00:56.9]} 26. Re1 {[%clk 0:00:59.8]} 26... Nxb1
{[%clk 0:00:51.5]} 27. Rxb1 {[%clk 0:01:00.7]} 27... e5 {[%clk 0:00:47.8]} 28.
Kh2 {[%clk 0:00:57.9]} 28... e4 {[%clk 0:00:40.6]} 29. dxe4 {[%clk 0:00:55.9]}
29... Bxe4 {[%clk 0:00:41.5]} 30. Rd1 {[%clk 0:00:55.7]} 30... d3 {[%clk
0:00:40.4]} 31. Neg1 {[%clk 0:00:50.2]} 31... d5 {[%clk 0:00:36.4]} 32. Rd2
{[%clk 0:00:44]} 32... Rec8 {[%clk 0:00:35.1]} 33. Qe7 {[%clk 0:00:39.7]} 33...
Rc2 {[%clk 0:00:34.2]} 34. Rd1 {[%clk 0:00:25.6]} 34... Qf2 {[%clk 0:00:32.3]}
0-1

[Event "Late-Titled-Tuesday-Blitz-March-12-2024"]
[Site "Chess.com"]
[Date "2024.03.12"]
[Round "1"]
[White "robertoalejandro10"]
[Black "Rud_Makarian"]
[Result "0-1"]
[WhiteElo "2554"]
[BlackElo "3052"]
[TimeControl "180+1"]
[EndTime "14:06:40 PDT"]
[Termination "Rud_Makarian won by resignation"]

1. Nf3 {[%clk 0:03:00.9]} 1... Nf6 {[%clk 0:02:59.3]} 2. b3 {[%clk 0:02:59.9]}
2... d5 {[%clk 0:02:56.4]} 3. Bb2 {[%clk 0:02:59.6]} 3... Bg4 {[%clk 0:02:56.7]}
4. g3 {[%clk 0:02:55.4]} 4... Bxf3 {[%clk 0:02:56.7]} 5. exf3 {[%clk 0:02:55.5]}
5... g6 {[%clk 0:02:56.7]} 6. Bg2 {[%clk 0:02:55]} 6... Bg7 {[%clk 0:02:57.3]}
7. O-O {[%clk 0:02:54]} 7... O-O {[%clk 0:02:58]} 8. f4 {[%clk 0:02:54.1]} 8...
e6 {[%clk 0:02:56.8]} 9. d3 {[%clk 0:02:53.7]} 9... c5 {[%clk 0:02:57]} 10. Nd2
{[%clk 0:02:53.5]} 10... Nc6 {[%clk 0:02:57.4]} 11. Re1 {[%clk 0:02:53.7]} 11...
Rc8 {[%clk 0:02:51.7]} 12. Nf3 {[%clk 0:02:52.4]} 12... Nd7 {[%clk 0:02:51.4]}
13. Bxg7 {[%clk 0:02:50.9]} 13... Kxg7 {[%clk 0:02:52.3]} 14. Qd2 {[%clk
0:02:43.9]} 14... Qf6 {[%clk 0:02:49.3]} 15. Rad1 {[%clk 0:02:41.6]} 15... b5
{[%clk 0:02:48.9]} 16. h4 {[%clk 0:02:29.5]} 16... b4 {[%clk 0:02:48.7]} 17. Bh3
{[%clk 0:02:25.2]} 17... Qc3 {[%clk 0:02:42.8]} 18. Qxc3+ {[%clk 0:02:11.6]}
18... bxc3 {[%clk 0:02:43.7]} 19. Re2 {[%clk 0:02:12.2]} 19... a5 {[%clk
0:02:35.4]} 20. a4 {[%clk 0:02:10.6]} 20... Nb6 {[%clk 0:02:22]} 21. Rde1 {[%clk
0:01:53.9]} 21... Nb4 {[%clk 0:02:19.9]} 22. Ne5 {[%clk 0:01:38.5]} 22... Rc7
{[%clk 0:02:08]} 23. h5 {[%clk 0:01:37]} 23... c4 {[%clk 0:02:05.8]} 24. dxc4
{[%clk 0:01:36.6]} 24... dxc4 {[%clk 0:02:06]} 25. Nxc4 {[%clk 0:01:14.3]} 25...
Nxc4 {[%clk 0:02:05.9]} 26. bxc4 {[%clk 0:01:15.2]} 26... Rd8 {[%clk 0:02:03.6]}
27. hxg6 {[%clk 0:01:12.2]} 27... hxg6 {[%clk 0:02:04.5]} 28. Bf1 {[%clk
0:01:12.4]} 28... Rxc4 {[%clk 0:01:35.9]} 29. Rxe6 {[%clk 0:00:57.4]} 29... fxe6
{[%clk 0:01:26.3]} 30. Bxc4 {[%clk 0:00:56.7]} 30... Nxc2 {[%clk 0:01:26.6]} 31.
Rxe6 {[%clk 0:00:55]} 31... Na3 {[%clk 0:01:22.6]} 32. Re7+ {[%clk 0:00:51.6]}
32... Kh6 {[%clk 0:01:08.4]} 33. Bb3 {[%clk 0:00:24.2]} 33... Rb8 {[%clk
0:00:53.7]} 34. Bc2 {[%clk 0:00:03.1]} 34... Nxc2 {[%clk 0:00:51.3]} 35. Rc7
{[%clk 0:00:04]} 35... Nd4 {[%clk 0:00:51.4]} 36. Kg2 {[%clk 0:00:03.5]} 36...
c2 {[%clk 0:00:50.7]} 0-1

[Event "Late-Titled-Tuesday-Blitz-March-12-2024"]
[Site "Chess.com"]
[Date "2024.03.12"]
[Round "1"]
[White "Hikaru"]
[Black "RantomOpening"]
[Result "1-0"]
[WhiteElo "3254"]
[BlackElo "2570"]
[TimeControl "180+1"]
[EndTime "14:06:42 PDT"]
[Termination "Hikaru won by resignation"]

1. Nf3 {[%clk 0:03:00.9]} 1... d5 {[%clk 0:02:53.7]} 2. c4 {[%clk 0:02:49.1]}
2... e6 {[%clk 0:02:52.7]} 3. e3 {[%clk 0:02:48.3]} 3... Nf6 {[%clk 0:02:48.4]}
4. b3 {[%clk 0:02:48.2]} 4... c5 {[%clk 0:02:44.9]} 5. Bb2 {[%clk 0:02:48.4]}
5... Nc6 {[%clk 0:02:44.3]} 6. cxd5 {[%clk 0:02:49.1]} 6... Nxd5 {[%clk
0:02:40.1]} 7. Bb5 {[%clk 0:02:48.7]} 7... Bd7 {[%clk 0:02:35.7]} 8. O-O {[%clk
0:02:48.5]} 8... Nf6 {[%clk 0:02:27.6]} 9. Nc3 {[%clk 0:02:28.7]} 9... Bd6
{[%clk 0:02:20.7]} 10. d4 {[%clk 0:02:27.6]} 10... O-O {[%clk 0:02:06.8]} 11.
dxc5 {[%clk 0:02:23]} 11... Bxc5 {[%clk 0:02:07.7]} 12. a3 {[%clk 0:02:23.4]}
12... a6 {[%clk 0:02:03.4]} 13. Bd3 {[%clk 0:02:23.5]} 13... Qe7 {[%clk
0:01:37.7]} 14. b4 {[%clk 0:02:19.8]} 14... Ba7 {[%clk 0:01:37.5]} 15. Qc2
{[%clk 0:02:12.8]} 15... Rac8 {[%clk 0:01:35.9]} 16. Rac1 {[%clk 0:02:12.9]}
16... h6 {[%clk 0:01:34.3]} 17. Rfd1 {[%clk 0:02:12.6]} 17... Rfd8 {[%clk
0:01:33.3]} 18. Qe2 {[%clk 0:02:11.1]} 18... b5 {[%clk 0:01:22.6]} 19. Ne4
{[%clk 0:02:09.4]} 19... Nxe4 {[%clk 0:01:14.5]} 20. Bxe4 {[%clk 0:02:09.7]}
20... a5 {[%clk 0:00:52.7]} 21. bxa5 {[%clk 0:01:33.7]} 21... Nxa5 {[%clk
0:00:48.3]} 22. Ne5 {[%clk 0:01:33.8]} 22... Nc4 {[%clk 0:00:41.7]} 23. Nxc4
{[%clk 0:01:26]} 23... bxc4 {[%clk 0:00:41.5]} 24. Rxc4 {[%clk 0:01:26.8]} 24...
Rb8 {[%clk 0:00:17.9]} 25. Rcc1 {[%clk 0:01:05.9]} 25... Bb5 {[%clk 0:00:15.9]}
26. Rxd8+ {[%clk 0:01:01.4]} 26... Qxd8 {[%clk 0:00:16.5]} 27. Qg4 {[%clk
0:01:01.4]} 27... f6 {[%clk 0:00:12.1]} 28. Qxe6+ {[%clk 0:01:00.9]} 28... Kh8
{[%clk 0:00:12.5]} 29. Qf5 {[%clk 0:01:00.5]} 29... Qg8 {[%clk 0:00:11]} 30.
Bxf6 {[%clk 0:00:41.5]} 30... gxf6 {[%clk 0:00:10.5]} 31. Rc7 {[%clk 0:00:38.6]}
31... Bd7 {[%clk 0:00:10.2]} 32. Rxd7 {[%clk 0:00:37.9]} 1-0

[Event "Late-Titled-Tuesday-Blitz-March-12-2024"]
[Site "Chess.com"]
[Date "2024.03.12"]
[Round "1"]
[White "remi04"]
[Black "N_Mullodzhanov"]
[Result "1-0"]
[WhiteElo "2904"]
[BlackElo "2516"]
[TimeControl "180+1"]
[EndTime "14:06:43 PDT"]
[Termination "remi04 won by checkmate"]

1. e4 {[%clk 0:03:00.9]} 1... c6 {[%clk 0:02:58.9]} 2. c4 {[%clk 0:03:00.6]}
2... d5 {[%clk 0:02:58.7]} 3. cxd5 {[%clk 0:03:01.5]} 3... cxd5 {[%clk
0:02:59.3]} 4. exd5 {[%clk 0:03:02.4]} 4... Nf6 {[%clk 0:02:59.9]} 5. Bb5+
{[%clk 0:03:03]} 5... Nbd7 {[%clk 0:02:58.6]} 6. Nf3 {[%clk 0:03:02.7]} 6...
Nxd5 {[%clk 0:02:56.1]} 7. Nc3 {[%clk 0:03:02.4]} 7... Nf6 {[%clk 0:02:55.1]} 8.
O-O {[%clk 0:03:01.8]} 8... e6 {[%clk 0:02:54.3]} 9. d4 {[%clk 0:03:01.8]} 9...
a6 {[%clk 0:02:54.4]} 10. Ba4 {[%clk 0:03:00.4]} 10... b5 {[%clk 0:02:53.8]} 11.
Bb3 {[%clk 0:03:00.4]} 11... Nb6 {[%clk 0:02:53.2]} 12. a4 {[%clk 0:02:58.3]}
12... b4 {[%clk 0:02:51.5]} 13. a5 {[%clk 0:02:58.5]} 13... Nbd5 {[%clk
0:02:40.9]} 14. Nxd5 {[%clk 0:02:50]} 14... Nxd5 {[%clk 0:02:41.8]} 15. Ba4+
{[%clk 0:02:19.4]} 15... Bd7 {[%clk 0:02:41.2]} 16. Ne5 {[%clk 0:02:20]} 16...
Bb5 {[%clk 0:02:07.1]} 17. Bxb5+ {[%clk 0:02:15.1]} 17... axb5 {[%clk
0:02:07.3]} 18. Qd3 {[%clk 0:02:11.7]} 18... Nc7 {[%clk 0:01:36]} 19. Qf3 {[%clk
0:02:04.7]} 19... Qe7 {[%clk 0:01:01.1]} 20. Qc6+ {[%clk 0:02:00]} 20... Kd8
{[%clk 0:01:00.8]} 21. Qb7 {[%clk 0:01:21.1]} 21... Qe8 {[%clk 0:00:45.9]} 22.
Bf4 {[%clk 0:01:03.5]} 22... Bd6 {[%clk 0:00:33]} 23. Nxf7+ {[%clk 0:01:01.7]}
23... Qxf7 {[%clk 0:00:33.9]} 24. Bxd6 {[%clk 0:01:02.3]} 24... Rc8 {[%clk
0:00:26.7]} 25. Rac1 {[%clk 0:00:57.3]} 25... Qd7 {[%clk 0:00:21.7]} 26. Bg3
{[%clk 0:00:51.3]} 26... Nd5 {[%clk 0:00:18.3]} 27. Bh4+ {[%clk 0:00:44.8]}
27... Nf6 {[%clk 0:00:13.5]} 28. Rxc8+ {[%clk 0:00:44.6]} 28... Qxc8 {[%clk
0:00:14.4]} 29. Qxg7 {[%clk 0:00:44.8]} 29... Qd7 {[%clk 0:00:06.9]} 30. Bxf6+
{[%clk 0:00:41.7]} 30... Kc7 {[%clk 0:00:07.2]} 31. Rc1+ {[%clk 0:00:40.9]}
31... Kb8 {[%clk 0:00:02.2]} 32. Qxd7 {[%clk 0:00:38.4]} 32... Rc8 {[%clk
0:00:01.5]} 33. Rxc8# {[%clk 0:00:37.1]} 1-0

[Event "Late-Titled-Tuesday-Blitz-March-12-2024"]
[Site "Chess.com"]
[Date "2024.03.12"]
[Round "1"]
[White "scrambleyourbrain"]
[Black "Meri-Arabidze"]
[Result "0-1"]
[WhiteElo "2384"]
[BlackElo "2706"]
[TimeControl "180+1"]
[EndTime "14:06:43 PDT"]
[Termination "Meri-Arabidze won by resignation"]

1. e4 {[%clk 0:03:00.9]} 1... e5 {[%clk 0:02:59.6]} 2. Nf3 {[%clk 0:03:00.4]}
2... Nc6 {[%clk 0:02:59.9]} 3. Bb5 {[%clk 0:02:59.7]} 3... a6 {[%clk 0:03:00.4]}
4. Ba4 {[%clk 0:02:56]} 4... Nf6 {[%clk 0:03:00.4]} 5. O-O {[%clk 0:02:56.2]}
5... Be7 {[%clk 0:03:00.8]} 6. Re1 {[%clk 0:02:56.6]} 6... b5 {[%clk 0:03:00.7]}
7. Bb3 {[%clk 0:02:57.2]} 7... d6 {[%clk 0:03:01.4]} 8. c3 {[%clk 0:02:57.6]}
8... O-O {[%clk 0:03:01.5]} 9. h3 {[%clk 0:02:58.1]} 9... Na5 {[%clk 0:03:00.5]}
10. Bc2 {[%clk 0:02:57.2]} 10... c5 {[%clk 0:03:01.2]} 11. d4 {[%clk 0:02:58]}
11... Qc7 {[%clk 0:02:59]} 12. Nbd2 {[%clk 0:02:52.8]} 12... cxd4 {[%clk
0:02:58.6]} 13. cxd4 {[%clk 0:02:53.1]} 13... Nc6 {[%clk 0:02:57.3]} 14. Nb3
{[%clk 0:02:53.3]} 14... a5 {[%clk 0:02:54.5]} 15. Be3 {[%clk 0:02:53.5]} 15...
a4 {[%clk 0:02:54.6]} 16. Nbd2 {[%clk 0:02:54.1]} 16... Nb4 {[%clk 0:02:49.5]}
17. Bb1 {[%clk 0:02:53]} 17... Bd7 {[%clk 0:02:43.7]} 18. a3 {[%clk 0:02:52.8]}
18... Na6 {[%clk 0:02:43.7]} 19. Bd3 {[%clk 0:02:52.7]} 19... exd4 {[%clk
0:02:36.2]} 20. Nxd4 {[%clk 0:02:47.5]} 20... Qb7 {[%clk 0:02:36.1]} 21. Qe2
{[%clk 0:02:38.1]} 21... Rab8 {[%clk 0:02:34.8]} 22. Rac1 {[%clk 0:02:03.8]}
22... Nc5 {[%clk 0:02:34.3]} 23. Bf4 {[%clk 0:01:59.9]} 23... Rfe8 {[%clk
0:02:26.1]} 24. Bb1 {[%clk 0:01:45.1]} 24... Bf8 {[%clk 0:02:21.3]} 25. f3
{[%clk 0:01:34.4]} 25... Rbc8 {[%clk 0:02:21.6]} 26. Qf2 {[%clk 0:01:34]} 26...
g6 {[%clk 0:02:12.4]} 27. Ne2 {[%clk 0:01:22.8]} 27... Nh5 {[%clk 0:02:09.5]}
28. Be3 {[%clk 0:01:20.6]} 28... Bg7 {[%clk 0:02:08.8]} 29. Nc3 {[%clk 0:01:16]}
29... b4 {[%clk 0:02:05.3]} 30. axb4 {[%clk 0:01:15]} 30... Qxb4 {[%clk
0:02:06.2]} 31. Nf1 {[%clk 0:01:15.1]} 31... Nb3 {[%clk 0:01:59.6]} 32. Nd5
{[%clk 0:01:15.3]} 32... Qb7 {[%clk 0:01:50.9]} 33. Rxc8 {[%clk 0:01:15.3]}
33... Qxc8 {[%clk 0:01:50.6]} 34. Nd2 {[%clk 0:01:05]} 34... Nc5 {[%clk
0:01:40.5]} 35. Nc4 {[%clk 0:01:02.2]} 35... Nxe4 {[%clk 0:01:38.6]} 36. fxe4
{[%clk 0:00:46.1]} 36... Qxc4 {[%clk 0:01:38.3]} 37. Rc1 {[%clk 0:00:46.1]}
37... Qb3 {[%clk 0:01:33.6]} 38. Nc3 {[%clk 0:00:26.2]} 38... Qb7 {[%clk
0:01:02.2]} 39. Ba2 {[%clk 0:00:20.6]} 39... Rf8 {[%clk 0:01:00.3]} 40. Bd5
{[%clk 0:00:20.3]} 40... Qb4 {[%clk 0:00:57.7]} 41. Rb1 {[%clk 0:00:16.3]} 41...
Bxc3 {[%clk 0:00:55.2]} 42. Qc2 {[%clk 0:00:15.9]} 42... Bd4 {[%clk 0:00:54]}
43. Bxd4 {[%clk 0:00:15.9]} 43... Qxd4+ {[%clk 0:00:54.2]} 44. Kh2 {[%clk
0:00:16.7]} 44... Qe5+ {[%clk 0:00:53.6]} 45. Kg1 {[%clk 0:00:17.2]} 45... Nf4
{[%clk 0:00:53.7]} 46. Rf1 {[%clk 0:00:16.9]} 46... Nxd5 {[%clk 0:00:53.5]} 47.
exd5 {[%clk 0:00:17]} 0-1

[Event "Late-Titled-Tuesday-Blitz-March-12-2024"]
[Site "Chess.com"]
[Date "2024.03.12"]
[Round "1"]
[White "katharinareinecke"]
[Black "xasid81"]
[Result "0-1"]
[WhiteElo "1977"]
[BlackElo "2576"]
[TimeControl "180+1"]
[EndTime "14:06:43 PDT"]
[Termination "xasid81 won on time"]

1. e4 {[%clk 0:02:51.8]} 1... d5 {[%clk 0:02:57]} 2. exd5 {[%clk 0:02:46.8]}
2... Qxd5 {[%clk 0:02:57.9]} 3. Nc3 {[%clk 0:02:46.3]} 3... Qa5 {[%clk
0:02:55.5]} 4. d3 {[%clk 0:02:43.7]} 4... Nf6 {[%clk 0:02:55]} 5. Bd2 {[%clk
0:02:41.4]} 5... c6 {[%clk 0:02:54.5]} 6. Nf3 {[%clk 0:02:41.5]} 6... Qc7 {[%clk
0:02:54]} 7. g3 {[%clk 0:02:41.1]} 7... h6 {[%clk 0:02:52.1]} 8. Bg2 {[%clk
0:02:39.9]} 8... Bf5 {[%clk 0:02:51.6]} 9. O-O {[%clk 0:02:35.4]} 9... e6 {[%clk
0:02:50.7]} 10. h3 {[%clk 0:02:18.2]} 10... Bd6 {[%clk 0:02:49.1]} 11. Nh4
{[%clk 0:02:12.5]} 11... Bh7 {[%clk 0:02:48.5]} 12. Ne4 {[%clk 0:02:10.6]} 12...
Nxe4 {[%clk 0:02:46.7]} 13. dxe4 {[%clk 0:02:11.1]} 13... O-O {[%clk 0:02:45.2]}
14. Qe2 {[%clk 0:02:07.4]} 14... Nd7 {[%clk 0:02:44.4]} 15. Be3 {[%clk
0:01:53.2]} 15... Bc5 {[%clk 0:02:41.9]} 16. f4 {[%clk 0:01:45.9]} 16... Bxe3+
{[%clk 0:02:40.9]} 17. Qxe3 {[%clk 0:01:45.4]} 17... Qb6 {[%clk 0:02:41.8]} 18.
Qxb6 {[%clk 0:01:40.8]} 18... Nxb6 {[%clk 0:02:42.7]} 19. b3 {[%clk 0:01:34.5]}
19... Rfd8 {[%clk 0:02:37.8]} 20. Rad1 {[%clk 0:01:34.4]} 20... g5 {[%clk
0:02:36.7]} 21. fxg5 {[%clk 0:01:25.7]} 21... hxg5 {[%clk 0:02:37.6]} 22. Nf3
{[%clk 0:01:25.4]} 22... Bxe4 {[%clk 0:02:28.7]} 23. Nxg5 {[%clk 0:01:25.2]}
23... Rxd1 {[%clk 0:02:26.3]} 24. Rxd1 {[%clk 0:01:22.6]} 24... Bxc2 {[%clk
0:02:26.4]} 25. Rf1 {[%clk 0:01:16.2]} 25... Bg6 {[%clk 0:02:26.2]} 26. Be4
{[%clk 0:01:11.1]} 26... Bxe4 {[%clk 0:02:23.7]} 27. Nxe4 {[%clk 0:01:12]} 27...
Rd8 {[%clk 0:02:23.4]} 28. h4 {[%clk 0:01:07.7]} 28... Nd5 {[%clk 0:02:22.2]}
29. h5 {[%clk 0:01:05.6]} 29... b6 {[%clk 0:02:20.7]} 30. Kh2 {[%clk 0:00:57.4]}
30... Kg7 {[%clk 0:02:18.7]} 31. Ng5 {[%clk 0:00:53.5]} 31... Rd7 {[%clk
0:02:06.6]} 32. g4 {[%clk 0:00:44.9]} 32... Ne3 {[%clk 0:02:03.2]} 33. Rf4
{[%clk 0:00:26]} 33... Re7 {[%clk 0:01:48.6]} 34. Re4 {[%clk 0:00:22.3]} 34...
Nd5 {[%clk 0:01:45.5]} 35. Kh3 {[%clk 0:00:20.6]} 35... Nf6 {[%clk 0:01:27.4]}
36. Re1 {[%clk 0:00:19.2]} 36... Nh7 {[%clk 0:01:26.6]} 37. Ne4 {[%clk
0:00:18.1]} 37... f6 {[%clk 0:01:25.7]} 38. Kh4 {[%clk 0:00:18.1]} 38... e5
{[%clk 0:01:17.2]} 39. Rf1 {[%clk 0:00:17.8]} 39... Rd7 {[%clk 0:01:14.6]} 40.
h6+ {[%clk 0:00:12.9]} 40... Kg6 {[%clk 0:01:10.5]} 41. Rf2 {[%clk 0:00:07.8]}
41... Rd4 {[%clk 0:01:09.2]} 42. Ng3 {[%clk 0:00:06.7]} 42... Rf4 {[%clk
0:01:04.1]} 43. Rxf4 {[%clk 0:00:03.5]} 43... exf4 {[%clk 0:01:05]} 44. Nf5
{[%clk 0:00:03.8]} 44... Ng5 {[%clk 0:01:05.6]} 0-1